Cogmind - Beta 15 @@@ ROGUE MODE // 2025.07.14 @ 17:16:42 Player: Rockstar Result: Destroyed by Y-54 Guardian with Flak Gun Performance ------------- Evolutions (4) 2000 Regions Visited (5) 1000 Robots Destroyed (21) 105 Value Destroyed (907) 907 Prototype IDs (2) 40 Alien Tech Used (0) 0 Bonus (800) 800 TOTAL SCORE: 4852 Bonus ------- Registered with UFD 300 Met Optimus in HQ 500 Cogmind --------- Core Integrity 0/850 Matter 174/300 Energy 100/100 System Corruption 2% Temperature Cool (18) Movement Core (450) Ox8 Location -6/Factory Parts ------- > --- POWER (2) -------- (None) > --- PROPULSION (4) --- (None) > --- UTILITY (7) ------ Large Storage Unit Improved Targeting Computer Core Analyzer > --- WEAPON (2) ------- Gauss Rifle Ripper > --- INVENTORY (15) --- Weight Redist. System Advanced Visual Processing Unit Targeting Computer Heavy Assault Rifle Peak State ------------ > --- POWER ------------ Light Nuclear Core Light Fission Core > --- PROPULSION ------- Flexi-carbon Leg Flexi-carbon Leg Flexi-carbon Leg > --- UTILITY ---------- Large Storage Unit Active Sensor Suite Core Analyzer Reaction Control System Phase Shifter > --- WEAPON ----------- Gauss Rifle Gauss Rifle > --- INVENTORY -------- Weight Redist. System Advanced Visual Processing Unit Targeting Computer Heavy Assault Rifle Ripper [Rating: 72] Favorites ----------- Power Ion Engine Engine Ion Engine Power Core Light Nuclear Core Propulsion Aluminum Leg Treads Improved Treads Leg Aluminum Leg Wheel Subdweller Monowheel Utility Small Storage Unit Device Scrap Suit Storage Small Storage Unit Processor Surveybot 17 Chip Protection Improved Medium Armor Plating Weapon Battle Cannon Energy Gun Medium Laser Ballistic Gun Assault Rifle Ballistic Cannon Battle Cannon Launcher Rocket Launcher Slashing Weapon Ripper Build | -11 -10 -10 -10 -9 -6 ------- Run | Yrd Mat Min Sub Scr Fac Slots Evolved 8 | . . . . . 8 Power 1 | . . . . . 1 Propulsion 2 | . . . . . 2 Utility 5 | . . . . . 5 Weapon . | . . . . . . Parts Attached 56 | 6 . 1 8 7 34 Power 9 | 1 . . 2 1 5 Engine 6 | 1 . . 2 1 2 Core 3 | . . . . . 3 Reactor . | . . . . . . Propulsion 12 | 2 . . 1 3 6 Treads 5 | . . . . 3 2 Leg 6 | 2 . . . . 4 Wheel 1 | . . . 1 . . Hover . | . . . . . . Flight . | . . . . . . Utility 19 | 1 . . 2 1 15 Device 9 | . . . 2 . 7 Storage 2 | 1 . . . 1 . Processor 6 | . . . . . 6 Hackware . | . . . . . . Protection 2 | . . . . . 2 Artifact . | . . . . . . Weapon 16 | 2 . 1 3 2 8 Energy Gun 6 | 2 . . . . 4 Energy Cannon . | . . . . . . Ballistic Gun 6 | . . 1 . 1 4 Ballistic Cannon 1 | . . . 1 . . Launcher 1 | . . . 1 . . Special Weapon . | . . . . . . Impact Weapon . | . . . . . . Slashing Weapon 2 | . . . 1 1 . Piercing Weapon . | . . . . . . Special Melee Weapon . | . . . . . . Unidentified Prototypes 2 | . . . . 1 1 Parts Lost 37 | . . . 6 . 31 Power 7 | . . . 1 . 6 Propulsion 9 | . . . 2 . 7 Utility 11 | . . . 1 . 10 Weapon 10 | . . . 2 . 8 Highest Loss Streak 22 | . . . 6 . 22 To Critical Strikes 2 | . . . . . 2 Average Backups 7 | . 2 3 4 11 7 Power 1 | . 1 1 1 1 1 Propulsion . | . . . . . . Utility 1 | . . . . 3 2 Weapon 3 | . 1 2 3 5 3 Tool/Special . | . . . . . . Unused Backups 8 | . . . . 4 4 Power . | . . . . . . Propulsion . | . . . . . . Utility 5 | . . . . 2 3 Weapon 3 | . . . . 2 1 Tool/Special . | . . . . . . Average Slot Usage (%) 76 | . 85 85 74 78 71 Engine 12 | . 14 14 13 14 7 Treads 4 | . . . . 5 11 Leg 7 | . 28 28 9 . 3 Wheel 3 | . . . 1 10 . Device 5 | . . . 6 2 10 Storage 15 | . 14 14 14 24 6 Processor 3 | . . . . . 13 Energy Gun 6 | . 28 14 11 . 1 Ballistic Gun 3 | . . 14 2 . 5 Ballistic Cannon 6 | . . . 2 14 3 Launcher 1 | . . . 6 . . Slashing Weapon 3 | . . . 4 6 . Peak Build Rating 72 | 6 6 6 13 18 72 Average Rating 18 | 4 6 6 7 11 49 On Entrance 8 | . 6 6 6 13 18 Naked Turns . | . . . . . . Heaviest Build 51 | 14 14 14 19 36 51 Greatest Support 60 | 20 20 20 20 41 60 Greatest Overweight (x) 14 | 4 . . 6 1 14 Average Overweight (x) . | . . . 1 . . Largest Inventory Capacity 15 | 8 8 8 8 15 15 Average Capacity 11 | 7 8 8 8 13 15 Most Carried 15 | 2 3 5 8 15 14 Average Carried 7 | . 2 3 4 12 7 Final Capacity 15 | 8 8 8 8 15 15 Final Carried 15 | 2 3 5 8 15 4 Class Distribution -------------------- 77% | Mutant 7% | Derelict-Mutant 5% | Assassin 4% | Scavenger-Mutant 4% | Scavenger-Skirmisher Dominant Class ---------------- Mutant | -10/Materials Mutant | -10/Mines Mutant | -10/Subcaves Mutant | -9/Scraptown Derelict-Mutant | -6/Factory Resources | -11 -10 -10 -10 -9 -6 ----------- Run | Yrd Mat Min Sub Scr Fac Matter Collected 1003 | 203 . 38 177 131 454 Remotely . | . . . . . . Salvage Created 863 | . . 38 182 . 643 Parts 56 | . . 3 16 . 37 Haulers Intercepted . | . . . . . . Recyclers Shooed . | . . . . . . Parts Field Recycled . | . . . . . . Retrieved Matter . | . . . . . . Parts Self-Destructed 19 | . . . 19 . . Prevented . | . . . . . . Kills | -11 -10 -10 -10 -9 -6 ------- Run | Yrd Mat Min Sub Scr Fac Combat Hostiles Destroyed 21 | . . 3 5 . 13 Melee 1 | . . . 1 . . Guns 18 | . . 3 4 . 11 Cannons 2 | . . . . . 2 Classes Destroyed 8 | . . 1 3 . 4 Swarmer 3 | . . 3 . . . Cutter 3 | . . . . . 3 Grunt 6 | . . . 2 . 4 Sentry 1 | . . . 1 . . Specialist 2 | . . . . . 2 Hunter 3 | . . . . . 3 Heavy 1 | . . . . . 1 Subdweller 2 | . . . 2 . . Best Kill Streak 3 | . . 2 2 . 3 Combat Bots Only 3 | . . 2 2 . 3 Max Kills in Single Turn 1 | . . 1 1 . 1 Gunslinging . | . . . . . . Exploded . | . . . . . . Melee 1 | . . . 1 . . Uniques/NPCs Destroyed . | . . . . . . Combat | -11 -10 -10 -10 -9 -6 -------- Run | Yrd Mat Min Sub Scr Fac Hostile Shots Fired 492 | . . 12 49 . 431 Missed 137 | . . 3 16 . 118 Hits 355 | . . 9 33 . 313 Melee 2 | . . . . . 2 Projectile 353 | . . 9 33 . 311 AOE 1 | . . . . . 1 Critical Strikes 17 | . . . 1 . 16 Part Disruptions 5 | . . . . . 5 Damage Taken 5363 | . . 71 731 . 4561 Core 1020 | . . 16 153 . 851 Absorbed by Shields . | . . . . . . Regen/Repaired (Parts) 20 | . . . . . 20 Core Remaining (%) 66 | 100 . . . 32 . Volleys Fired 84 | . . 7 19 . 58 Largest 2 | . . 2 2 . 2 Hottest 135 | . . 70 83 . 135 Shots Fired 157 | . . 14 37 . 106 Gun 129 | . . 14 31 . 84 Cannon 22 | . . . . . 22 Launcher 6 | . . . 6 . . Special . | . . . . . . Kinetic 94 | . . 7 13 . 74 Thermal 52 | . . 7 18 . 27 Explosive 6 | . . . 6 . . Electromagnetic 5 | . . . . . 5 Robot Hit Streak 19 | . . 3 17 . 19 Robot Miss Streak 4 | . . 2 2 . 4 Penetration Max . | . . . . . . Secondary Targets 1 | . . 1 . . . Max Gunslinging Chain 1 | . . 1 . . . Shots Hit Robots 110 | . . 7 30 . 73 Core Hits 49 | . . 3 11 . 35 Critical Kills 1 | . . . . . 1 Critical Parts Destroyed . | . . . . . . Critical Strikes 4 | . . . . . 4 Burn 2 | . . . . . 2 Destroy 1 | . . . . . 1 Sever 1 | . . . . . 1 Melee Attacks 6 | . . . 4 . 2 Impact . | . . . . . . Slashing 6 | . . . 4 . 2 Piercing . | . . . . . . Sneak Attacks . | . . . . . . Combat Hostiles . | . . . . . . Follow-up Attacks . | . . . . . . Damage Inflicted 2281 | . 9 89 788 . 1395 Guns 1486 | . . 89 289 . 1108 Cannons 250 | . . . . . 250 Explosions 387 | . . . 387 . . Melee 145 | . . . 112 . 33 Ramming 13 | . 9 . . . 4 Kinetic 971 | . . 40 112 . 819 Thermal 684 | . . 49 177 . 458 Explosive 387 | . . . 387 . . Electromagnetic 81 | . . . . . 81 Impact . | . . . . . . Slashing 145 | . . . 112 . 33 Piercing . | . . . . . . Highest Corruption 2 | . . . . . 2 Average Corruption 2 | . . . . . 2 Corruption Purged . | . . . . . . Corruption Blocked . | . . . . . . Effects 7 | . . . . . 7 Heat Flow Errors 2 | . . . . . 2 Energy Discharges 1 | . . . . . 1 Parts Rejected 2 | . . . . . 2 Data Loss (minor) 1 | . . . . . 1 Weapon Failures 1 | . . . . . 1 Overload Shots . | . . . . . . Overflow Damage 9 | . . . 9 . . Projectiles . | . . . . . . Explosions 9 | . . . 9 . . Melee . | . . . . . . Knockbacks 9 | . . . . . 9 Impact . | . . . . . . Kinetic 7 | . . . . . 7 Secondary 2 | . . . . . 2 Self-Inflicted Damage 67 | . . . 67 . . Shots 3 | . . . 3 . . Rammed 3 | . . . . . 3 Targets Rammed 4 | . 1 . . . 3 Kicked 1 | . 1 . . . . Crushed . | . . . . . . Highest Temperature 269 | . . 36 . . 269 Average Temperature 74 | . . 17 . . 83 Received Heat Transfer 666 | . . . 174 . 492 Siege Activations . | . . . . . . Martial Activations . | . . . . . . Shielding Activations . | . . . . . . Robots Disrupted . | . . . . . . Combat Hostiles . | . . . . . . Robots Corrupted . | . . . . . . Combat Hostiles . | . . . . . . Parts Fried 2 | . . . . . 2 Impact Corruptions . | . . . . . . Robots Melted . | . . . . . . Combat Hostiles . | . . . . . . Parts Melted 3 | . . . . . 3 Heat Transferred 1791 | . . 148 518 . 1125 Parts Sabotaged . | . . . . . . Parts Stolen . | . . . . . . Parts Stripped . | . . . . . . Power Chain Reactions . | . . . . . . Alert | -11 -10 -10 -10 -9 -6 ------- Run | Yrd Mat Min Sub Scr Fac Maximum Alert Level . | . . . . . . Low Security (%) 100 | 100 100 100 . . 100 Level 1 . | . . . . . . Level 2 . | . . . . . . Level 3 . | . . . . . . Level 4 . | . . . . . . Level 5 . | . . . . . . High Security . | . . . . . . Max Security . | . . . . . . Peak Influence 104 | . 16 80 . . 104 Initial . | . . . . . . Average 22 | . 2 28 . . 24 Influence Increases 550 | . 16 100 70 . 364 Destroy 0b10 Robot/C 380 | . . 60 60 . 260 Destroy Leader 80 | . . 10 10 . 60 Successful Hack 28 | . 16 . . . 12 Destroy Structure 2 | . . . . . 2 Lose Combat Pursuer 60 | . . 30 . . 30 Influence Decreases 550 | . 16 100 70 . 364 Time Decay 404 | . 16 100 70 . 218 Lost Part 146 | . . . . . 146 Squads Dispatched 4 | . . . . . 4 Investigation . | . . . . . . Extermination 1 | . . . . . 1 Reinforcement 3 | . . . . . 3 Assault . | . . . . . . Garrison . | . . . . . . Intercept . | . . . . . . Searches Triggered . | . . . . . . Construction Impeded . | . . . . . . Haulers Reinforced . | . . . . . . Active Scanning Responses . | . . . . . . Cargo Convoy Interrupts . | . . . . . . Stealth | -11 -10 -10 -10 -9 -6 --------- Run | Yrd Mat Min Sub Scr Fac Distress Signals 1 | . . . . . 1 Communications Jammed . | . . . . . . Distress Signals . | . . . . . . Times Spotted 32 | . 1 5 7 . 19 Peak Tracking Total 4 | . 1 3 2 . 4 Tactical Retreats 8 | . . 1 5 . 2 Traps | -11 -10 -10 -10 -9 -6 ------- Run | Yrd Mat Min Sub Scr Fac Traps Triggered . | . . . . . . Indirectly . | . . . . . . Trap Hack Attempts . | . . . . . . Triggered . | . . . . . . Disarmed 4 | . 4 . . . . Reprogrammed . | . . . . . . Reused . | . . . . . . Traps Extracted . | . . . . . . Installed . | . . . . . . Triggered . | . . . . . . Machines | -11 -10 -10 -10 -9 -6 ---------- Run | Yrd Mat Min Sub Scr Fac Machines Disabled . | . . . . . . Max in Single Turn . | . . . . . . Machines Repaired . | . . . . . . Machines Dismantled . | . . . . . . Machines Sabotaged . | . . . . . . Overloaded Fab Kills . | . . . . . . Hacking | -11 -10 -10 -10 -9 -6 --------- Run | Yrd Mat Min Sub Scr Fac Machines Accessed 6 | . 2 . . 3 1 Terminals 2 | . 2 . . . . Fabricators . | . . . . . . Repair Stations 1 | . . . . . 1 Recycling Units . | . . . . . . Scanalyzers . | . . . . . . Garrison Access . | . . . . . . Total Hacks 16 | . 8 . . 6 2 Successful 11 | . 4 . . 6 1 Failed 5 | . 4 . . . 1 Catastrophic 1 | . 1 . . . . Database Lockouts . | . . . . . . Manual 5 | . 5 . . . . Terminals 8 | . 8 . . . . Fabricators . | . . . . . . Repair Stations 2 | . . . . . 2 Recycling Units . | . . . . . . Scanalyzers . | . . . . . . Garrison Access . | . . . . . . Terminal Hacks 9 | . 3 . . 6 . Record 5 | . . . . 5 . Open Door 1 | . . . . 1 . Branch Access Points 1 | . 1 . . . . Disarm Traps 1 | . 1 . . . . Hauler Manifests 1 | . 1 . . . . Fabricator Hacks . | . . . . . . Repair Station Hacks 1 | . . . . . 1 Scan Component 1 | . . . . . 1 Recycling Unit Hacks . | . . . . . . Scanalyzer . | . . . . . . Garrison Access Hacks . | . . . . . . Unauthorized Hacks 1 | . 1 . . . . Terminals 1 | . 1 . . . . Track 1 | . 1 . . . . Fabricators . | . . . . . . Repair Stations . | . . . . . . Recycling Units . | . . . . . . Scanalyzers . | . . . . . . Garrison Access . | . . . . . . Data Cores Recovered . | . . . . . . Used . | . . . . . . Hacking Detections 3 | . 2 . . . 1 Full Trace Events 1 | . 1 . . . . Feedback Events . | . . . . . . Feedback Blocked . | . . . . . . Robot Schematics Acquired . | . . . . . . Robots Built . | . . . . . . Authchips . | . . . . . . Time . | . . . . . . Total Robot Build Rating . | . . . . . . Part Schematics Acquired . | . . . . . . Parts Built . | . . . . . . Authchips . | . . . . . . Time . | . . . . . . Total Part Build Rating . | . . . . . . Parts Repaired . | . . . . . . Time . | . . . . . . Parts Recycled . | . . . . . . Recycled Matter . | . . . . . . Retrieved Matter . | . . . . . . Retrieved Components . | . . . . . . Parts Scanalyzed . | . . . . . . Part Schematics Acquired . | . . . . . . Parts Damaged . | . . . . . . Bothacking | -11 -10 -10 -10 -9 -6 ------------ Run | Yrd Mat Min Sub Scr Fac Used RIF Installer . | . . . . . . Robots Hacked . | . . . . . . Non-combat . | . . . . . . Combat . | . . . . . . Robot Hacks Applied . | . . . . . . Relay Couplers Released . | . . . . . . Fabnet Peak Effective % . | . . . . . . Robots Rewired . | . . . . . . Allies Hacked . | . . . . . . Hacks Repelled . | . . . . . . Allies | -11 -10 -10 -10 -9 -6 -------- Run | Yrd Mat Min Sub Scr Fac Total Allies . | . . . . . . Largest Group . | . . . . . . Highest-Rated Group . | . . . . . . Highest-Rated Ally . | . . . . . . Total Orders . | . . . . . . Ally Attacks . | . . . . . . Total Damage . | . . . . . . Kills . | . . . . . . Allies Corrupted . | . . . . . . Allies Melted 1 | . . . . 1 . Intel | -11 -10 -10 -10 -9 -6 ------- Run | Yrd Mat Min Sub Scr Fac Active Infowar (turns) 454 | . . . 290 55 109 Optics 345 | . . . 290 55 . A.S.S. 109 | . . . . . 109 Robot Analysis Total . | . . . . . . Derelict Logs Recovered 1 | . . 1 . . . Drone Launches . | . . . . . . Drone Recoveries . | . . . . . . Exploration | -11 -10 -10 -10 -9 -6 ------------- Run | Yrd Mat Min Sub Scr Fac Turns Passed 3066 | 68 97 301 897 953 750 Spaces Moved 1661 | 42 80 186 421 671 261 Core 172 | 10 . . 154 . 8 Treads 284 | . . . . 96 188 Legs 562 | 32 80 186 199 . 65 Wheels 643 | . . . 68 575 . Hover . | . . . . . . Flight . | . . . . . . Fastest Speed 50 | 50 120 120 110 110 120 Average Speed 152 | 137 120 120 187 133 181 Slowest Speed 750 | 250 120 120 350 240 750 Overloaded Moves . | . . . . . . Propulsion Burnouts . | . . . . . . Robots Hopped . | . . . . . . Potential Cave-ins . | . . . . . . Cave-ins Triggered . | . . . . . . Exploration Rate (%) 27 | 5 23 50 33 45 8 Regions Visited 5 Branch Regions 3 Pre-discovered Areas 1 | . . 1 . . . Known Exits Taken 1 | . 1 . . . . Unknown Exits Taken 4 | 1 . 1 1 1 . Scrap Searched 2 | . . . . 2 . Spaces Dug 14 | . . . 14 . . Terrain Destroyed 35 | . . . 35 . . Melee . | . . . . . . Projectile . | . . . . . . AOE 35 | . . . 35 . . Terrain Rammed . | . . . . . . Walls Destroyed . | . . . . . . Machines Disabled . | . . . . . . Actions | -11 -10 -10 -10 -9 -6 --------- Run | Yrd Mat Min Sub Scr Fac Total 2017 | 49 81 249 483 736 419 Wait 136 | . . 54 25 27 30 Move 1656 | 41 79 185 420 670 261 Hop . | . . . . . . Pick Up 35 | 2 1 2 4 14 12 Fast Attach 30 | 6 . . 4 4 16 Attach 31 | . . . 3 2 26 Detach 9 | . . . 1 3 5 Swap 10 | . . 1 3 2 4 Drop 15 | . . . . 14 1 Fire 84 | . . 7 19 . 58 Melee 6 | . . . 4 . 2 Ram 1 | . . . . . 1 Kick 1 | . 1 . . . . Crush 2 | . . . . . 2 Escape Stasis . | . . . . . . Rewire 1 | . . . . . 1 Trap . | . . . . . . Miscellaneous . | . . . . . . Route ------- -11/Scrapyard -10/Materials -10/Mines -10/Subcaves (discovered 2 exits: [*Mat] / *Scr) -9/Scraptown -6/Factory (discovered 1 exit: [*Fac]) History --------- Turn | Location | Event 16 | -11/Scrapyard | Discovered new exit (range 15) 69 | -11/Scrapyard | Entered Materials 75 | -10/Materials | Identified exit to Mines 166 | -10/Materials | Entered Mines 301 | -10/Mines | Build established: Mutant 386 | -10/Mines | Received a Rocket Launcher from a helpful Derelict 458 | -10/Mines | Discovered new exit (range 6) 467 | -10/Mines | Entered Subcaves 468 | -10/Subcaves | Approached by a straggling Scientist 806 | -10/Subcaves | Lost 6 parts (1p2n1u2w) 1019 | -10/Subcaves | Shifting Twisted Machinery released Sub. Optics 1027 | -10/Subcaves | Shifting Twisted Machinery released Ripper 1263 | -10/Subcaves | Core integrity fell below 50% 1267 | -10/Subcaves | Discovered new exit (range 7) 1356 | -10/Subcaves | Scientist uncovered a shortcut to Scraptown 1364 | -10/Subcaves | Entered Scraptown 1433 | -9/Scraptown | Visited UFD Registry 1433 | -9/Scraptown | Registered with UFD as "Pipeshell" 1490 | -9/Scraptown | Visited Junk Repository 1693 | -9/Scraptown | Visited Scrap Suit Storage 1702 | -9/Scraptown | Found Scrap Suit 1776 | -9/Scraptown | Visited Sword Containment 1834 | -9/Scraptown | Visited Cartography Club 1870 | -9/Scraptown | Found Surveybot 17 Chip 1932 | -9/Scraptown | Visited Curators Association 1949 | -9/Scraptown | Visited DA-N13 Charitable Foundation 1965 | -9/Scraptown | Found DCF Scrap (30 items) 2016 | -9/Scraptown | Visited LU-1G1's Boring Crew 2080 | -9/Scraptown | Met Optimus 2080 | -9/Scraptown | Accepted into 0bPrime 2177 | -9/Scraptown | Visited Observation Area 2260 | -9/Scraptown | Civil war broke out across Scraptown 2295 | -9/Scraptown | Discovered new exit (range 5) 2317 | -9/Scraptown | Entered Factory 2317 | -6/Factory | Evolved 8 slots: Power x1, Propulsion x2, Utility x5 2776 | -6/Factory | Found Prototype Device 2778 | -6/Factory | Identified Active Sensor Suite 2860 | -6/Factory | Core integrity fell below 50% 2901 | -6/Factory | Lost 22 parts (5p5n5u7w) 2971 | -6/Factory | Core integrity fell below 20% 3031 | -6/Factory | Discovered new exit (range 11) 3067 | -6/Factory | Destroyed by Y-54 Guardian with Flak Gun Last Messages --------------- Knocked back. Acquired Imp. Targeting Computer. Flexi-carbon Leg blasted off. Knocked back. Slug penetrates Wall. Acquired Flexi-carbon Leg. Acquired 4 matter. ALERT: Potential suspicious activity detected, Programmers report to Factory Zone 4N. U-05 Engineer builds a Wall. Gauss Rifle destroyed. EXIT=FOUND Flexi-carbon Leg destroyed. Imp. Reaction Control System destroyed. Flexi-carbon Leg destroyed. System corrupted: Lgt. Nuclear Core rejected. Active Sensor Suite destroyed. Reaction Control System destroyed. Lgt. Fission Core destroyed. U-05 Engineer destroyed. Map ----- +----------------------------------------------------+ | | | ?????????????????????????????????????????????????? | | ?????????????????????????????????????????????????? | | ?????????????????????????????????????????????????? | | ?????????????????????????????????????????????????? | | ?????????????????????????????????????????????????? | | ?????????????????????????????????????????????????? | | ?????????????????????????????????????????????????? | | ?????????????????????????????????????????????????? | | ?????????????????????????????????????????????????? | | ?????????????????????????????????????????????????? | | ?????????????????????????????????????????????????? | | ?????????????????????????????????????????????????? | | ?????????????????????????????????????????????????? | | ?????????????????###+????????????????????????????? | | ?????????????????# ???????????????????????????? | | ?????????????????# ???????????????????????????? | | ?????????????????# ???????????????????????????? | | ?????????????????+ ??????????????????????????? | | ?????????????????# ??????????????????????????? | | ?????????????????# ??????????????????????????? | | ????????????????## #?#+#?????#+#?????????????? | | ????????????????# ?# #???### ###???????????? | | ????????????????# ## ###?# #???????????? | | ????????????????# = ### #???????????? | | ????????????????# < @%! Y +??????? ???? | | ????????????????# !* ### #????? ???? | | ????????????????# ######?# #???? ?????? | | #######?????????# ??????####+######"#######? | | #?????????### #???????# # | | "" #???????????# #???????# # | | """#???????????# #???????# # | | =R"#???????????# ? #???????# # | | """#???????????# #???????# # | | #??????????? ???????# # | | #??????????? T ???????# # | | #????????????"" ????????# ! # | | #???????????? ???#####"##"+##############? | | #???????????? ???# % #??????????? | | #????????????# ###?# = #??????????? | | #????????????# # ?# % """""" #??????????? | | /################### #""## """""" #??????????? | | /^ # """""" #??????????? | | !^ % # """""" #??????????? | | [ /= + #??????????? | | =%/^ # """""" #??????????? | | ! ^ # """"""????????????? | | [ #### T#### ## """""?????????????? | | #??####??# ## """"??????????????? | | [%[#????????# ## ??????????????? | +----------------------------------------------------+ Best States ------------- Heat Dissipation 56 Energy Generation 27 Energy Capacity 415 Matter Stores 300 Matter Capacity 300 Sight Range 21 Robot Scan Range 20 Terrain Scan Density 1210 Armor Coverage 375 Phase Shifting 5 Evasion (%) 68 Targeting Accuracy 6 Core Analysis 6 Recoil Reduction 3 Salvage Targeting 4 Item Schematics ----------------- None Robot Schematics ------------------ None Fabricated ------------ Nothing Repaired ---------- Nothing Alien Tech Used ----------------- None Achievements -------------- None Challenges ------------ None Game ------ Seed ShrapnelReflectiveKatana Manual? 0 Play Time 00:34:44 Cumulative 76.0 hours Start 2025.07.14 @ 16:05:50 End 2025.07.14 @ 17:16:42 Sessions 1 Manual Loads 0 Difficulty Rogue Special Mode None Game No. 70 Rogue 67 Adventurer 1 Explorer 2 Win Type - Total 0 Types 0/0/0/0/0/0/0/0/0/0 Lore% 24 Gallery% 43 Achievement% 34 Wizard Run 0 Options --------- Layout 0 ASCII 0 Keyboard 0 Movement Mouse Keybinds 0 Fullscreen 2 Font 24/Smallcaps Map View 76x50 Zoom Use 0% Tactical HUD 0 Map Filters NONE Filters NONE Steam 1 RUN: 61729887-b32b-4b68-8c82-6ac67c585456